[Event "*** Titled Tuesday Blitz"]
[Site "Chess.com"]
[Date "2019.02.05"]
[Round "9"]
[White "Kostya_Nikologorskiy"]
[Black "Entilza"]
[Result "1-0"]
[WhiteElo "2434"]
[BlackElo "2215"]
[TimeControl "180+2"]
[EndTime "15:15:08 PST"]
[Termination "Kostya_Nikologorskiy won on time"]

1. e4 {[%clk 0:02:51.6]} 1... c6 {[%clk 0:03:00]} 2. d4 {[%clk 0:02:50.3]} 2...
d5 {[%clk 0:02:58.8]} 3. Nc3 {[%clk 0:02:47.8]} 3... dxe4 {[%clk 0:02:59.1]} 4.
Nxe4 {[%clk 0:02:48.6]} 4... Bf5 {[%clk 0:03:00]} 5. Ng3 {[%clk 0:02:49.1]} 5...
Bg6 {[%clk 0:03:00.2]} 6. Bc4 {[%clk 0:02:46.5]} 6... Nd7 {[%clk 0:02:53.4]} 7.
N1e2 {[%clk 0:02:45.9]} 7... e6 {[%clk 0:02:48.6]} 8. h4 {[%clk 0:02:43.3]} 8...
h6 {[%clk 0:02:21.4]} 9. Nf4 {[%clk 0:02:42.1]} 9... Bh7 {[%clk 0:02:18.6]} 10.
O-O {[%clk 0:02:29]} 10... Ngf6 {[%clk 0:02:15.8]} 11. Re1 {[%clk 0:02:23.1]}
11... Be7 {[%clk 0:02:11.2]} 12. Bxe6 {[%clk 0:02:20.4]} 12... fxe6 {[%clk
0:02:05.9]} 13. Nxe6 {[%clk 0:02:21.9]} 13... Qb6 {[%clk 0:02:02.6]} 14. Nxg7+
{[%clk 0:02:18.8]} 14... Kf7 {[%clk 0:02:03.2]} 15. N7f5 {[%clk 0:02:15.6]}
15... Bxf5 {[%clk 0:01:57]} 16. Nxf5 {[%clk 0:02:17.2]} 16... Bf8 {[%clk
0:01:57.3]} 17. Qe2 {[%clk 0:01:56.4]} 17... Re8 {[%clk 0:01:44.1]} 18. Qc4+
{[%clk 0:01:56.8]} 18... Nd5 {[%clk 0:01:44.4]} 19. Rxe8 {[%clk 0:01:47.1]}
19... Kxe8 {[%clk 0:01:46.3]} 20. Qe2+ {[%clk 0:01:42.7]} 20... Kd8 {[%clk
0:01:39]} 21. c4 {[%clk 0:01:43.1]} 21... N5f6 {[%clk 0:01:27]} 22. Bf4 {[%clk
0:01:42.1]} 22... c5 {[%clk 0:01:18.2]} 23. d5 {[%clk 0:01:38.6]} 23... Ne8
{[%clk 0:00:45]} 24. Re1 {[%clk 0:01:36.6]} 24... Nd6 {[%clk 0:00:37.7]} 25.
Nxh6 {[%clk 0:01:26.5]} 25... Bxh6 {[%clk 0:00:24.2]} 26. Qe7+ {[%clk
0:01:19.9]} 26... Kc7 {[%clk 0:00:24.2]} 27. Bxh6 {[%clk 0:00:50.9]} 27... Rxh6
{[%clk 0:00:24]} 28. Re6 {[%clk 0:00:52.8]} 28... Rh8 {[%clk 0:00:19.2]} 29. b3
{[%clk 0:00:37.7]} 29... Re8 {[%clk 0:00:19.2]} 30. Qh7 {[%clk 0:00:32.1]} 30...
Qa5 {[%clk 0:00:18.1]} 31. Kh2 {[%clk 0:00:29.6]} 31... Qd2 {[%clk 0:00:14.8]}
32. Rxe8 {[%clk 0:00:22.1]} 32... Nxe8 {[%clk 0:00:16.7]} 33. Qf5 {[%clk
0:00:22.1]} 33... Nd6 {[%clk 0:00:16.3]} 34. Qf3 {[%clk 0:00:23.1]} 34... Qd4
{[%clk 0:00:15.9]} 35. g3 {[%clk 0:00:22.4]} 35... Ne5 {[%clk 0:00:16.1]} 36.
Qf8 {[%clk 0:00:22.7]} 36... Ng4+ {[%clk 0:00:16]} 37. Kg2 {[%clk 0:00:24]}
37... Qe4+ {[%clk 0:00:16]} 38. Kh3 {[%clk 0:00:20.2]} 38... Ne5 {[%clk
0:00:15.6]} 39. Kh2 {[%clk 0:00:19.2]} 39... Nf3+ {[%clk 0:00:14.9]} 40. Kh3
{[%clk 0:00:18.8]} 40... Ng1+ {[%clk 0:00:14.9]} 41. Kh2 {[%clk 0:00:20.1]}
41... Nf3+ {[%clk 0:00:14.5]} 42. Kh3 {[%clk 0:00:21.1]} 42... Nd4 {[%clk
0:00:14.4]} 43. h5 {[%clk 0:00:20.8]} 43... N4f5 {[%clk 0:00:14.3]} 44. Kh2
{[%clk 0:00:19.8]} 44... Qg4 {[%clk 0:00:13.3]} 45. Qh8 {[%clk 0:00:18.3]} 45...
Qf3 {[%clk 0:00:11.1]} 46. Kg1 {[%clk 0:00:18.8]} 46... a5 {[%clk 0:00:07.4]}
47. h6 {[%clk 0:00:18.1]} 47... Ne4 {[%clk 0:00:03.4]} 48. Qe5+ {[%clk
0:00:18.4]} 48... Kb6 {[%clk 0:00:02.2]} 49. Qf4 {[%clk 0:00:18]} 49... Qxf4
{[%clk 0:00:02.2]} 50. gxf4 {[%clk 0:00:19.8]} 50... Nxh6 {[%clk 0:00:02.6]} 51.
Kg2 {[%clk 0:00:21.2]} 1-0

[Event "*** Titled Tuesday Blitz"]
[Site "Chess.com"]
[Date "2019.02.05"]
[Round "9"]
[White "Fins0905"]
[Black "Alexander_Donchenko"]
[Result "1-0"]
[WhiteElo "2653"]
[BlackElo "2674"]
[TimeControl "180+2"]
[EndTime "15:15:12 PST"]
[Termination "Fins0905 won by resignation"]

1. d4 {[%clk 0:03:01.9]} 1... Nf6 {[%clk 0:03:00.7]} 2. c4 {[%clk 0:03:02.4]}
2... e6 {[%clk 0:03:02.3]} 3. Nf3 {[%clk 0:03:02.5]} 3... c5 {[%clk 0:03:03.1]}
4. d5 {[%clk 0:03:02.7]} 4... d6 {[%clk 0:03:04.5]} 5. Nc3 {[%clk 0:03:03]} 5...
exd5 {[%clk 0:03:06]} 6. cxd5 {[%clk 0:03:04.1]} 6... g6 {[%clk 0:03:07.5]} 7.
Bf4 {[%clk 0:03:03.8]} 7... Bg7 {[%clk 0:03:08.6]} 8. h3 {[%clk 0:03:04.9]} 8...
O-O {[%clk 0:03:09.5]} 9. e3 {[%clk 0:03:06.2]} 9... Na6 {[%clk 0:03:10.8]} 10.
Be2 {[%clk 0:03:04.5]} 10... Nc7 {[%clk 0:03:11.9]} 11. a4 {[%clk 0:03:04.2]}
11... a6 {[%clk 0:03:13.3]} 12. O-O {[%clk 0:03:03.7]} 12... Rb8 {[%clk
0:03:14]} 13. a5 {[%clk 0:03:01]} 13... Re8 {[%clk 0:03:15.2]} 14. Bh2 {[%clk
0:02:54.3]} 14... b5 {[%clk 0:03:13.4]} 15. axb6 {[%clk 0:02:54.2]} 15... Rxb6
{[%clk 0:03:15]} 16. Nd2 {[%clk 0:01:51.3]} 16... Rb4 {[%clk 0:01:56.9]} 17. Nc4
{[%clk 0:01:44.7]} 17... Bf8 {[%clk 0:01:58.1]} 18. Qd2 {[%clk 0:01:28.8]} 18...
Ne4 {[%clk 0:01:56.2]} 19. Nxe4 {[%clk 0:01:29.2]} 19... Rxe4 {[%clk 0:01:58.1]}
20. Rac1 {[%clk 0:01:10.2]} 20... Bb7 {[%clk 0:01:47.1]} 21. Na5 {[%clk
0:00:53.2]} 21... Bxd5 {[%clk 0:01:39.3]} 22. Bf3 {[%clk 0:00:52.3]} 22... Qf6
{[%clk 0:01:21.8]} 23. Bxe4 {[%clk 0:00:30.7]} 23... Bxe4 {[%clk 0:01:23.7]} 24.
Nc4 {[%clk 0:00:23.9]} 24... Bd5 {[%clk 0:01:19]} 25. Qd3 {[%clk 0:00:16.5]}
25... Qe6 {[%clk 0:01:16.5]} 26. b3 {[%clk 0:00:14.7]} 26... Ne8 {[%clk
0:01:03.3]} 27. Rfd1 {[%clk 0:00:13]} 27... Nf6 {[%clk 0:01:04.6]} 28. f3 {[%clk
0:00:13.3]} 28... Bh6 {[%clk 0:00:57.8]} 29. e4 {[%clk 0:00:10.6]} 29... Bxc4
{[%clk 0:00:39.7]} 30. Rxc4 {[%clk 0:00:11]} 30... Rb8 {[%clk 0:00:19.3]} 31.
Qxd6 {[%clk 0:00:09.4]} 31... Qxd6 {[%clk 0:00:20.8]} 32. Rxd6 {[%clk
0:00:10.3]} 32... Ne8 {[%clk 0:00:20.8]} 33. Rd3 {[%clk 0:00:07.8]} 33... Rb5
{[%clk 0:00:20.2]} 34. Rd8 {[%clk 0:00:07.2]} 34... Kf8 {[%clk 0:00:21.2]} 35.
Bd6+ {[%clk 0:00:07.8]} 35... Kg7 {[%clk 0:00:22.9]} 36. Rxe8 {[%clk 0:00:09.2]}
36... Bg5 {[%clk 0:00:23.4]} 37. Bxc5 {[%clk 0:00:08.2]} 37... Rxc5 {[%clk
0:00:23.4]} 38. Rxc5 {[%clk 0:00:08.6]} 38... Be3+ {[%clk 0:00:25]} 39. Kf1
{[%clk 0:00:10.1]} 39... Bxc5 {[%clk 0:00:26.9]} 40. Rc8 {[%clk 0:00:10.7]}
40... Bb4 {[%clk 0:00:27.9]} 41. Rc6 {[%clk 0:00:11.8]} 41... a5 {[%clk
0:00:29.1]} 42. Ke2 {[%clk 0:00:12.3]} 42... h5 {[%clk 0:00:30.2]} 43. f4 {[%clk
0:00:13.5]} 43... h4 {[%clk 0:00:30.8]} 44. Kf3 {[%clk 0:00:14.4]} 44... Kh6
{[%clk 0:00:31.3]} 45. e5 {[%clk 0:00:14.7]} 45... Kg7 {[%clk 0:00:30.3]} 46.
Ke4 {[%clk 0:00:15.9]} 46... Bd2 {[%clk 0:00:29.4]} 47. f5 {[%clk 0:00:16.9]}
47... gxf5+ {[%clk 0:00:30]} 48. Kxf5 {[%clk 0:00:18.8]} 48... Be1 {[%clk
0:00:30.9]} 49. Rc7 {[%clk 0:00:19.3]} 49... Kg8 {[%clk 0:00:31]} 50. Ra7 {[%clk
0:00:19]} 50... Bc3 {[%clk 0:00:30.1]} 51. Rc7 {[%clk 0:00:18.6]} 51... Bd4
{[%clk 0:00:30]} 52. Rc4 {[%clk 0:00:18.5]} 52... Bf2 {[%clk 0:00:29.5]} 53. Kg5
{[%clk 0:00:18.1]} 53... Bg3 {[%clk 0:00:28.5]} 54. Rxh4 {[%clk 0:00:16.8]}
54... Bxe5 {[%clk 0:00:29.3]} 55. Kf5 {[%clk 0:00:17.8]} 55... Bc3 {[%clk
0:00:29.9]} 56. Rc4 {[%clk 0:00:17.3]} 56... Bd2 {[%clk 0:00:29.7]} 57. h4
{[%clk 0:00:17.7]} 57... Kg7 {[%clk 0:00:30.7]} 58. g4 {[%clk 0:00:18.6]} 58...
Be1 {[%clk 0:00:30.7]} 59. g5 {[%clk 0:00:20]} 59... Bf2 {[%clk 0:00:30.9]} 60.
h5 {[%clk 0:00:20.9]} 60... Bg3 {[%clk 0:00:29.7]} 61. Rd4 {[%clk 0:00:20.2]}
61... Bf2 {[%clk 0:00:24.9]} 62. Rd7 {[%clk 0:00:21]} 62... Kg8 {[%clk
0:00:25.3]} 63. g6 {[%clk 0:00:21.3]} 63... fxg6+ {[%clk 0:00:26]} 64. Kxg6
{[%clk 0:00:23.1]} 64... Kf8 {[%clk 0:00:26.4]} 65. h6 {[%clk 0:00:23.6]} 65...
Be1 {[%clk 0:00:25.2]} 66. h7 {[%clk 0:00:22.9]} 66... Bc3 {[%clk 0:00:26.1]}
67. Rd8+ {[%clk 0:00:24]} 67... Ke7 {[%clk 0:00:27.6]} 68. h8=Q {[%clk
0:00:25.5]} 68... Bxh8 {[%clk 0:00:27.8]} 69. Rxh8 {[%clk 0:00:27.4]} 69... Kd6
{[%clk 0:00:29.4]} 70. Ra8 {[%clk 0:00:27.8]} 70... Kc5 {[%clk 0:00:30.4]} 71.
Rxa5+ {[%clk 0:00:28.6]} 71... Kb4 {[%clk 0:00:32.3]} 72. Re5 {[%clk 0:00:29.2]}
72... Kxb3 {[%clk 0:00:33.5]} 73. Kf6 {[%clk 0:00:31]} 1-0

[Event "*** Titled Tuesday Blitz"]
[Site "Chess.com"]
[Date "2019.02.05"]
[Round "9"]
[White "TristanCalistri"]
[Black "INLOVEWITHF"]
[Result "1-0"]
[WhiteElo "2245"]
[BlackElo "2276"]
[TimeControl "180+2"]
[EndTime "15:15:13 PST"]
[Termination "TristanCalistri won by resignation"]

1. e4 {[%clk 0:03:00.3]} 1... e5 {[%clk 0:02:59.7]} 2. Nf3 {[%clk 0:03:00.7]}
2... Nc6 {[%clk 0:02:57.7]} 3. Bc4 {[%clk 0:02:59.7]} 3... Nf6 {[%clk
0:02:58.1]} 4. d3 {[%clk 0:02:59.7]} 4... h6 {[%clk 0:02:58.2]} 5. c3 {[%clk
0:02:58.8]} 5... d6 {[%clk 0:02:55.8]} 6. O-O {[%clk 0:02:51]} 6... g5 {[%clk
0:02:48]} 7. Ne1 {[%clk 0:02:18.5]} 7... Bg7 {[%clk 0:02:32.4]} 8. Be3 {[%clk
0:01:21.1]} 8... O-O {[%clk 0:02:29.3]} 9. Nd2 {[%clk 0:01:22]} 9... d5 {[%clk
0:02:27.5]} 10. exd5 {[%clk 0:01:22.3]} 10... Nxd5 {[%clk 0:02:29.4]} 11. Nc2
{[%clk 0:01:11.8]} 11... Nb6 {[%clk 0:02:29.4]} 12. Bb5 {[%clk 0:01:12.3]} 12...
Be6 {[%clk 0:02:19.1]} 13. d4 {[%clk 0:01:06.5]} 13... exd4 {[%clk 0:02:16.7]}
14. cxd4 {[%clk 0:01:05.2]} 14... Ne7 {[%clk 0:02:14.9]} 15. Ne4 {[%clk
0:00:55.9]} 15... c6 {[%clk 0:01:48.2]} 16. Be2 {[%clk 0:00:54.5]} 16... Bc4
{[%clk 0:01:43.1]} 17. Nc5 {[%clk 0:00:48.5]} 17... Bxe2 {[%clk 0:01:42.1]} 18.
Qxe2 {[%clk 0:00:50.4]} 18... Qc7 {[%clk 0:01:39.5]} 19. f4 {[%clk 0:00:44.1]}
19... Ned5 {[%clk 0:01:29.9]} 20. fxg5 {[%clk 0:00:32]} 20... Rfe8 {[%clk
0:01:26.8]} 21. Qd3 {[%clk 0:00:32.6]} 21... Nxe3 {[%clk 0:01:17.6]} 22. Nxe3
{[%clk 0:00:33.1]} 22... hxg5 {[%clk 0:01:13.4]} 23. Nf5 {[%clk 0:00:31.1]}
23... Nd5 {[%clk 0:00:54.2]} 24. Qh3 {[%clk 0:00:18.9]} 24... b6 {[%clk
0:00:42]} 25. Nd3 {[%clk 0:00:17.1]} 25... Re3 {[%clk 0:00:28.6]} 26. Nxe3
{[%clk 0:00:15.5]} 26... Bxd4 {[%clk 0:00:29.3]} 27. Rae1 {[%clk 0:00:14.2]}
27... Re8 {[%clk 0:00:29.3]} 28. Rf3 {[%clk 0:00:11.8]} 28... Qe7 {[%clk
0:00:24.2]} 29. Kh1 {[%clk 0:00:07]} 29... Bxe3 {[%clk 0:00:23.4]} 30. Qg4
{[%clk 0:00:05.5]} 30... f6 {[%clk 0:00:16.5]} 31. h4 {[%clk 0:00:03.9]} 31...
Qh7 {[%clk 0:00:17.4]} 32. Rh3 {[%clk 0:00:04.6]} 32... Qxd3 {[%clk 0:00:17.8]}
33. hxg5 {[%clk 0:00:05.7]} 33... fxg5 {[%clk 0:00:15.2]} 34. Qh5 {[%clk
0:00:06.8]} 34... Re7 {[%clk 0:00:11.6]} 35. Qh8+ {[%clk 0:00:07.3]} 35... Kf7
{[%clk 0:00:12.8]} 36. Rh7+ {[%clk 0:00:08.4]} 36... Ke6 {[%clk 0:00:13]} 37.
Qc8+ {[%clk 0:00:09.3]} 37... Kd6 {[%clk 0:00:13.7]} 38. Rh6+ {[%clk 0:00:10.4]}
38... Kc5 {[%clk 0:00:14.4]} 39. Qxc6+ {[%clk 0:00:10.3]} 39... Kd4 {[%clk
0:00:14.6]} 40. Rh3 {[%clk 0:00:08]} 40... Nf4 {[%clk 0:00:09.8]} 41. Qa4+
{[%clk 0:00:08.3]} 41... Kd5 {[%clk 0:00:05.9]} 42. Rd1 {[%clk 0:00:08.8]} 42...
Bd2 {[%clk 0:00:03.9]} 43. Rxd3+ {[%clk 0:00:09.2]} 43... Nxd3 {[%clk
0:00:05.8]} 44. Rxd2 {[%clk 0:00:10.4]} 44... Re3 {[%clk 0:00:03.5]} 45. Qa3
{[%clk 0:00:09.6]} 45... Ke4 {[%clk 0:00:04.3]} 46. Rxd3 {[%clk 0:00:10.4]}
46... Rxd3 {[%clk 0:00:05.3]} 47. Qxa7 {[%clk 0:00:12.3]} 47... g4 {[%clk
0:00:04.3]} 48. Qe7+ {[%clk 0:00:11.8]} 48... Kd4 {[%clk 0:00:03.1]} 49. Qf6+
{[%clk 0:00:12]} 49... Kc4 {[%clk 0:00:03.7]} 50. g3 {[%clk 0:00:12.6]} 50...
Rxg3 {[%clk 0:00:04.1]} 51. Qxb6 {[%clk 0:00:11.7]} 51... Rd3 {[%clk 0:00:03.3]}
52. Qc6+ {[%clk 0:00:11.8]} 52... Kd4 {[%clk 0:00:04.2]} 53. Qd6+ {[%clk
0:00:11.7]} 53... Ke3 {[%clk 0:00:05.1]} 54. Qg3+ {[%clk 0:00:12.1]} 54... Kd2
{[%clk 0:00:06]} 55. Qxg4 {[%clk 0:00:13.1]} 55... Kc2 {[%clk 0:00:07.6]} 56.
Qc4+ {[%clk 0:00:13.5]} 56... Kd2 {[%clk 0:00:08]} 57. a4 {[%clk 0:00:13.6]}
57... Re3 {[%clk 0:00:08]} 58. Qc3+ {[%clk 0:00:12.9]} 58... Rxc3 {[%clk
0:00:08]} 59. bxc3 {[%clk 0:00:14.1]} 1-0

[Event "*** Titled Tuesday Blitz"]
[Site "Chess.com"]
[Date "2019.02.05"]
[Round "9"]
[White "flomarechot"]
[Black "Chess2019Player"]
[Result "0-1"]
[WhiteElo "2068"]
[BlackElo "2073"]
[TimeControl "180+2"]
[EndTime "15:15:16 PST"]
[Termination "Chess2019Player won by checkmate"]

1. d4 {[%clk 0:03:01.9]} 1... Nf6 {[%clk 0:03:00.2]} 2. c4 {[%clk 0:03:02.7]}
2... c5 {[%clk 0:02:58.3]} 3. d5 {[%clk 0:03:03.6]} 3... e6 {[%clk 0:02:50.4]}
4. Nc3 {[%clk 0:03:03]} 4... exd5 {[%clk 0:02:51.8]} 5. cxd5 {[%clk 0:03:02.9]}
5... d6 {[%clk 0:02:53.3]} 6. g3 {[%clk 0:03:03.5]} 6... g6 {[%clk 0:02:54.9]}
7. Bg2 {[%clk 0:03:05]} 7... Bg7 {[%clk 0:02:56.6]} 8. Nf3 {[%clk 0:03:06.6]}
8... O-O {[%clk 0:02:58.2]} 9. O-O {[%clk 0:03:08.2]} 9... a6 {[%clk 0:02:59.7]}
10. a4 {[%clk 0:03:08.2]} 10... Re8 {[%clk 0:03:01.3]} 11. Nd2 {[%clk
0:03:08.3]} 11... Nbd7 {[%clk 0:03:01.9]} 12. h3 {[%clk 0:03:08.6]} 12... Ne5
{[%clk 0:03:02.7]} 13. f4 {[%clk 0:03:08.3]} 13... Ned7 {[%clk 0:03:01.4]} 14.
Nc4 {[%clk 0:03:05.8]} 14... Qe7 {[%clk 0:03:02.1]} 15. e4 {[%clk 0:03:06.6]}
15... Rb8 {[%clk 0:03:02.3]} 16. Re1 {[%clk 0:02:53.3]} 16... b5 {[%clk
0:03:00.9]} 17. Na5 {[%clk 0:02:46.1]} 17... Bb7 {[%clk 0:02:58.9]} 18. e5
{[%clk 0:02:41.3]} 18... b4 {[%clk 0:02:48.9]} 19. Ne2 {[%clk 0:02:17.5]} 19...
dxe5 {[%clk 0:02:43.5]} 20. Nxb7 {[%clk 0:02:17.8]} 20... Rxb7 {[%clk
0:02:42.8]} 21. d6 {[%clk 0:02:18.5]} 21... Qe6 {[%clk 0:02:39.1]} 22. Bxb7
{[%clk 0:02:19.3]} 22... exf4 {[%clk 0:02:38.5]} 23. Bxf4 {[%clk 0:02:12.2]}
23... Qxh3 {[%clk 0:02:32.1]} 24. Bg2 {[%clk 0:02:12.5]} 24... Qh5 {[%clk
0:02:32.7]} 25. Nc1 {[%clk 0:01:38.7]} 25... Rxe1+ {[%clk 0:02:30]} 26. Qxe1
{[%clk 0:01:40]} 26... Ng4 {[%clk 0:02:31.9]} 27. Qe8+ {[%clk 0:01:20.7]} 27...
Nf8 {[%clk 0:02:32.6]} 28. Ne2 {[%clk 0:01:19.3]} 28... Nf6 {[%clk 0:02:28.4]}
29. Qe7 {[%clk 0:00:57.1]} 29... Ne6 {[%clk 0:02:15.5]} 30. d7 {[%clk
0:00:47.6]} 30... Nxd7 {[%clk 0:02:10.5]} 31. Qxd7 {[%clk 0:00:47.9]} 31... Qxe2
{[%clk 0:02:11.2]} 32. Qe8+ {[%clk 0:00:38.4]} 32... Bf8 {[%clk 0:02:11.5]} 33.
Rf1 {[%clk 0:00:31.6]} 33... Nxf4 {[%clk 0:02:01.2]} 34. Qxe2 {[%clk 0:00:31.7]}
34... Nxe2+ {[%clk 0:02:03.1]} 35. Kf2 {[%clk 0:00:33.4]} 35... Nd4 {[%clk
0:01:59.7]} 36. Bd5 {[%clk 0:00:34.4]} 36... Bd6 {[%clk 0:01:55.2]} 37. Kg2
{[%clk 0:00:32.2]} 37... Ne6 {[%clk 0:01:54.1]} 38. Rd1 {[%clk 0:00:28.7]} 38...
Be5 {[%clk 0:01:52.7]} 39. b3 {[%clk 0:00:27]} 39... Nd4 {[%clk 0:01:40.3]} 40.
Rf1 {[%clk 0:00:26]} 40... Nf5 {[%clk 0:01:29.1]} 41. Re1 {[%clk 0:00:16.4]}
41... Bxg3 {[%clk 0:01:21.2]} 42. Re8+ {[%clk 0:00:16.7]} 42... Kg7 {[%clk
0:01:21.6]} 43. Ra8 {[%clk 0:00:18.3]} 43... Be5 {[%clk 0:01:15.3]} 44. Kf3
{[%clk 0:00:19.2]} 44... Ne7 {[%clk 0:01:01.3]} 45. Bc4 {[%clk 0:00:18.7]} 45...
h5 {[%clk 0:00:54.7]} 46. Rxa6 {[%clk 0:00:18.3]} 46... g5 {[%clk 0:00:55.7]}
47. Ra7 {[%clk 0:00:18.6]} 47... g4+ {[%clk 0:00:55.3]} 48. Kg2 {[%clk
0:00:18.8]} 48... Kf6 {[%clk 0:00:53.5]} 49. a5 {[%clk 0:00:19.2]} 49... h4
{[%clk 0:00:53.9]} 50. Ra6+ {[%clk 0:00:16.7]} 50... Kg5 {[%clk 0:00:46.7]} 51.
Bxf7 {[%clk 0:00:16.8]} 51... h3+ {[%clk 0:00:47.1]} 52. Kg1 {[%clk 0:00:15.6]}
52... g3 {[%clk 0:00:47]} 53. Re6 {[%clk 0:00:05.9]} 53... Bd4+ {[%clk
0:00:47.1]} 54. Kf1 {[%clk 0:00:07.3]} 54... g2+ {[%clk 0:00:48.4]} 55. Ke2
{[%clk 0:00:09]} 55... g1=Q {[%clk 0:00:46.6]} 56. Rxe7 {[%clk 0:00:10]} 56...
Qf2+ {[%clk 0:00:41.4]} 57. Kd3 {[%clk 0:00:11]} 57... Qf5+ {[%clk 0:00:41]} 58.
Kc4 {[%clk 0:00:11]} 58... Qf1+ {[%clk 0:00:39.9]} 59. Kd5 {[%clk 0:00:10.3]}
59... h2 {[%clk 0:00:38.9]} 60. a6 {[%clk 0:00:02.1]} 60... h1=Q+ {[%clk
0:00:39.2]} 61. Kd6 {[%clk 0:00:03.8]} 61... Qxa6+ {[%clk 0:00:39.5]} 62. Kd7
{[%clk 0:00:05]} 62... Qhc6+ {[%clk 0:00:39.8]} 63. Kd8 {[%clk 0:00:05.7]} 63...
Qac8# {[%clk 0:00:41.6]} 0-1

[Event "*** Titled Tuesday Blitz"]
[Site "Chess.com"]
[Date "2019.02.05"]
[Round "9"]
[White "RiskyDecision"]
[Black "ZeroRealtorFade"]
[Result "1-0"]
[WhiteElo "2397"]
[BlackElo "2245"]
[TimeControl "180+2"]
[EndTime "15:15:20 PST"]
[Termination "RiskyDecision won by resignation"]

1. d4 {[%clk 0:03:01.9]} 1... Nf6 {[%clk 0:02:57.4]} 2. c4 {[%clk 0:03:02.3]}
2... c5 {[%clk 0:02:56.1]} 3. d5 {[%clk 0:03:02.5]} 3... b5 {[%clk 0:02:57]} 4.
Qc2 {[%clk 0:03:03.2]} 4... bxc4 {[%clk 0:02:56.4]} 5. e4 {[%clk 0:03:02.8]}
5... d6 {[%clk 0:02:55.7]} 6. Bxc4 {[%clk 0:03:00.7]} 6... g6 {[%clk 0:02:56.7]}
7. Nc3 {[%clk 0:03:00.1]} 7... Bg7 {[%clk 0:02:57.8]} 8. Nf3 {[%clk 0:02:57.6]}
8... O-O {[%clk 0:02:58.5]} 9. O-O {[%clk 0:02:57.8]} 9... Nbd7 {[%clk
0:02:59.6]} 10. h3 {[%clk 0:02:50.1]} 10... Nb6 {[%clk 0:03:00.1]} 11. Be2
{[%clk 0:02:45.9]} 11... Nfd7 {[%clk 0:03:00.8]} 12. Bf4 {[%clk 0:02:41.9]}
12... f6 {[%clk 0:02:36.7]} 13. Nd2 {[%clk 0:02:25.3]} 13... Ne5 {[%clk
0:02:25.2]} 14. Be3 {[%clk 0:02:23.9]} 14... g5 {[%clk 0:02:25.4]} 15. Rfe1
{[%clk 0:02:08.8]} 15... Bd7 {[%clk 0:02:21.5]} 16. b3 {[%clk 0:02:05.5]} 16...
Qc8 {[%clk 0:02:10.6]} 17. Bb5 {[%clk 0:01:57.2]} 17... Ng6 {[%clk 0:02:03.6]}
18. Bxd7 {[%clk 0:01:56.6]} 18... Qxd7 {[%clk 0:02:00.2]} 19. Nf1 {[%clk
0:01:50.3]} 19... Nh4 {[%clk 0:01:48.7]} 20. Ng3 {[%clk 0:01:47.5]} 20... Qe8
{[%clk 0:01:40.3]} 21. Rac1 {[%clk 0:01:45.2]} 21... Nd7 {[%clk 0:01:36.1]} 22.
Nb5 {[%clk 0:01:43.8]} 22... Qb8 {[%clk 0:01:28.7]} 23. Qe2 {[%clk 0:01:39.3]}
23... Ne5 {[%clk 0:01:21.7]} 24. Nf5 {[%clk 0:01:40.1]} 24... Nxf5 {[%clk
0:01:21.3]} 25. exf5 {[%clk 0:01:41.2]} 25... a6 {[%clk 0:01:19.6]} 26. Na3
{[%clk 0:01:31]} 26... Qc8 {[%clk 0:01:09.4]} 27. g4 {[%clk 0:01:26.1]} 27... h5
{[%clk 0:01:05.2]} 28. Bd2 {[%clk 0:01:21.3]} 28... hxg4 {[%clk 0:01:03.3]} 29.
hxg4 {[%clk 0:01:21.9]} 29... Kf7 {[%clk 0:01:03.9]} 30. Kg2 {[%clk 0:01:16.3]}
30... Qb7 {[%clk 0:01:02.2]} 31. Qe4 {[%clk 0:01:15.1]} 31... Rh8 {[%clk
0:00:52.4]} 32. Rh1 {[%clk 0:01:01.7]} 32... Rh4 {[%clk 0:00:51.6]} 33. Rxh4
{[%clk 0:00:57.3]} 33... gxh4 {[%clk 0:00:53.4]} 34. Kh3 {[%clk 0:00:51.2]}
34... Rh8 {[%clk 0:00:41.6]} 35. f4 {[%clk 0:00:50.9]} 35... Nd7 {[%clk
0:00:36]} 36. Nc4 {[%clk 0:00:51.3]} 36... Nb8 {[%clk 0:00:27.7]} 37. Re1 {[%clk
0:00:42.6]} 37... Qd7 {[%clk 0:00:22.7]} 38. g5 {[%clk 0:00:42.2]} 38... fxg5
{[%clk 0:00:20.6]} 39. fxg5 {[%clk 0:00:42.8]} 39... Rf8 {[%clk 0:00:16.5]} 40.
Nb6 {[%clk 0:00:42.3]} 40... Qb7 {[%clk 0:00:14.2]} 41. Qe6+ {[%clk 0:00:42.6]}
41... Ke8 {[%clk 0:00:14.6]} 42. Nc8 {[%clk 0:00:39.7]} 42... Kd8 {[%clk
0:00:09.2]} 43. Nxe7 {[%clk 0:00:39.8]} 43... Be5 {[%clk 0:00:07.2]} 44. f6
{[%clk 0:00:35.6]} 44... Kc7 {[%clk 0:00:02.7]} 45. Rxe5 {[%clk 0:00:30.9]}
45... dxe5 {[%clk 0:00:03.5]} 46. Qxe5+ {[%clk 0:00:31.2]} 46... Kb6 {[%clk
0:00:04.8]} 47. Qe6+ {[%clk 0:00:26.6]} 47... Ka7 {[%clk 0:00:05.7]} 48. g6
{[%clk 0:00:26.5]} 48... Qb5 {[%clk 0:00:05.3]} 49. g7 {[%clk 0:00:19.3]} 49...
Qf1+ {[%clk 0:00:05.8]} 50. Kg4 {[%clk 0:00:18.1]} 50... Rxf6 {[%clk 0:00:05.8]}
51. Nc8+ {[%clk 0:00:16.3]} 51... Kb7 {[%clk 0:00:04.6]} 52. Nd6+ {[%clk
0:00:16.7]} 52... Ka8 {[%clk 0:00:04.9]} 53. Qxf6 {[%clk 0:00:14.1]} 53... Qxf6
{[%clk 0:00:05.9]} 54. g8=Q {[%clk 0:00:14.8]} 54... Qxd6 {[%clk 0:00:06.9]} 55.
Bf4 {[%clk 0:00:14.1]} 55... Qd7+ {[%clk 0:00:06.5]} 56. Kxh4 {[%clk 0:00:14.4]}
56... Qb7 {[%clk 0:00:07.3]} 57. Kg4 {[%clk 0:00:13.9]} 57... Ka7 {[%clk
0:00:08.2]} 58. Qxb8+ {[%clk 0:00:14.4]} 58... Qxb8 {[%clk 0:00:09.2]} 59. Bxb8+
{[%clk 0:00:15.8]} 59... Kxb8 {[%clk 0:00:11.1]} 60. Kf5 {[%clk 0:00:17.2]}
60... Kc7 {[%clk 0:00:13]} 61. Ke6 {[%clk 0:00:18.6]} 1-0